bitfinex-derivatives/quotes_SOLF0:USTF0_20250202
["timestamp","ask_amount","ask_price","bid_price","bid_amount"]
[1738459808285,0.03091376,218.25,218.21,4.61509575]
[1738459808586,0.03091376,218.25,218.24,12.47024826]
[1738459808986,4.5813,218.32,218.26,4.5822]
[1738459810286,0.03340313,218.31,218.27,0.03013316]
[1738459810486,0.03340313,218.31,218.27,12.50038142]
[1738459810687,0.03340313,218.31,218.3,12.47024826]
[1738459810893,0.03340313,218.31,218.27,12.50038142]
[1738459812595,0.03340313,218.31,218.27,0.03013316]
[1738459813294,4.61480313,218.31,218.27,0.03013316]
[1738459813596,0.03340313,218.31,218.27,0.03013316]
[1738459815798,4.5816,218.3,218.27,0.03013316]
[1738459815996,0.03340313,218.31,218.27,0.03013316]
[1738459816688,0.03340313,218.31,218.3,12.47024826]
[1738459817293,0.03340313,218.31,218.3,17.05174826]
[1738459817496,25.47388082,218.42,218.3,12.47024826]
[1738459817700,4.5794,218.4,218.34,12.47024826]
[1738459817899,25.47388082,218.42,218.34,12.47024826]
[1738459818102,6.3684702,218.42,218.34,12.47024826]
[1738459818300,4.5792,218.41,218.35,4.5803]
[1738459818696,0.03155895,218.4,218.36,0.03220677]
[1738459818899,4.5798,218.38,218.36,0.03220677]
[1738459820804,4.5799,218.38,218.36,0.03220677]
[1738459821803,0.03155895,218.4,218.36,0.03220677]
[1738459822005,4.58,218.37,218.36,0.03220677]
[1738459822902,12.47024826,218.37,218.25,12.47024826]
[1738459823304,3.0,218.36,218.25,12.47024826]
[1738459823905,4.5817,218.3,218.25,12.47024826]
[1738459824107,4.5817,218.3,218.28,0.03044052]
[1738459824900,4.5817,218.29,218.28,0.03044052]
[1738459825105,12.47024826,218.31,218.19,12.47024826]
[1738459825400,4.5822,218.27,218.17,4.584]
[1738459825599,12.47024826,218.31,218.17,4.584]
[1738459825799,12.47024826,218.31,218.16,12.47024826]
[1738459826300,4.5831,218.23,218.21,0.03505569]
[1738459827805,4.5827,218.25,218.21,0.03505569]
[1738459829215,0.03437403,218.26,218.22,12.47024826]
[1738459829512,0.03437403,218.26,218.25,12.47024826]
[1738459832011,0.03437403,218.26,218.21,0.03505569]
[1738459833311,4.583,218.23,218.21,0.03505569]
[1738459833516,0.03437403,218.26,218.21,0.03505569]
[1738459834609,4.5832,218.22,218.21,0.03505569]
[1738459834810,0.03437403,218.26,218.21,0.03505569]
[1738459835215,4.5826,218.25,218.21,0.03505569]
[1738459835414,0.03437403,218.26,218.21,0.03505569]
[1738459836614,4.583,218.23,218.21,0.03505569]
[1738459836917,0.03437403,218.26,218.21,0.03505569]
[1738459837118,4.5832,218.22,218.21,0.03505569]
[1738459838319,12.47024826,218.25,218.13,12.47024826]
[1738459838516,4.5842,218.18,218.13,12.47024826]
[1738459839421,4.5842,218.18,218.13,17.05514826]
[1738459839613,4.61621603,218.18,218.13,17.08842187]
[1738459840518,0.03201603,218.18,218.14,4.5848]
[1738459841322,4.61601603,218.18,218.13,12.50352187]
[1738459842016,0.03201603,218.18,218.13,0.03327361]
[1738459842215,4.5848,218.14,218.13,0.03327361]
[1738459843223,4.5846,218.16,218.13,0.03327361]
[1738459844323,0.03201603,218.18,218.13,0.03327361]
[1738459844715,3.03201603,218.18,218.13,0.03327361]
[1738459845020,4.5848,218.14,218.13,0.03327361]
[1738459846218,1.458,218.17,218.04,12.47024826]
[1738459846422,1.458,218.17,218.01,12.47024826]
[1738459846423,13.88024826,218.16,218.01,12.47024826]
[1738459846723,13.88024826,218.16,218.02,2.91492524]
[1738459846913,4.5861,218.08,218.01,12.47024826]
[1738459847523,0.03386158,218.07,218.02,0.03393386]
[1738459847825,0.03386158,218.07,218.02,4.62123386]
[1738459848317,0.03386158,218.07,218.02,0.03393386]
[1738459849728,4.5865,218.06,218.02,0.03393386]
[1738459850421,0.03386158,218.07,218.02,0.03393386]
[1738459850626,0.03386158,218.07,218.03,4.5871]
[1738459851326,0.03386158,218.07,218.02,12.50418212]
[1738459852027,0.03386158,218.07,218.02,17.09138212]
[1738459852426,0.03386158,218.07,218.02,0.03393386]
[1738459853528,4.5866,218.06,218.02,0.03393386]
[1738459853924,0.03386158,218.07,218.02,0.03393386]
[1738459855329,4.5872,218.03,218.02,0.03393386]
[1738459855728,0.03386158,218.07,218.02,0.03393386]
[1738459856128,4.5865,218.06,218.02,0.03393386]
[1738459857126,0.03386158,218.07,218.02,12.50418212]
[1738459857929,0.03386158,218.07,218.02,0.03393386]
[1738459858335,4.5872,218.03,218.02,0.03393386]
[1738459860334,0.03386158,218.07,218.02,0.03393386]
[1738459860537,0.03386158,218.07,218.02,12.50418212]
[1738459861542,0.03386158,218.07,218.05,12.47024826]
[1738459863145,0.03386158,218.07,218.02,12.50418212]
[1738459863943,0.03386158,218.07,218.04,4.5869]
[1738459864446,0.03386158,218.07,218.02,12.50418212]
[1738459865244,0.03386158,218.07,218.03,4.5871]
[1738459866242,0.03386158,218.07,218.06,4.5865]
[1738459866746,13.93014826,218.22,218.05,12.47024826]
[1738459866945,4.5844,218.17,218.11,4.5853]
[1738459867343,12.47024826,218.22,218.09,12.47024826]
[1738459867539,12.47024826,218.25,218.09,12.47024826]
[1738459867846,0.02892585,218.18,218.13,0.02902779]
[1738459869044,4.5842,218.17,218.13,0.02902779]
[1738459869945,4.61302585,218.18,218.13,0.02902779]
[1738459870145,0.02892585,218.18,218.13,0.02902779]
[1738459871149,4.5845,218.16,218.13,0.02902779]
[1738459871449,0.02892585,218.18,218.13,0.02902779]
[1738459872046,4.5848,218.14,218.13,0.02902779]
[1738459877654,4.5859,218.09,218.04,4.5869]
[1738459877953,12.47024826,218.13,218.0,12.47024826]
[1738459878756,0.02905082,218.09,218.04,0.03296082]
[1738459880355,0.02905082,218.09,218.05,4.5867]
[1738459880555,0.02905082,218.09,218.04,0.03296082]
[1738459882264,4.5865,218.06,218.04,0.03296082]
[1738459882461,0.02905082,218.09,218.04,0.03296082]
[1738459882960,4.5867,218.05,218.04,0.03296082]
[1738459884454,4.588,218.0,217.93,1.4489]
[1738459884659,12.47024826,218.04,217.94,2.93910712]
[1738459884960,12.47024826,218.04,217.93,1.4489]
[1738459884961,12.47024826,218.04,217.93,6.038]
[1738459885864,0.03343696,218.01,217.96,0.03060549]
[1738459886662,4.588,217.99,217.96,0.03060549]
[1738459886957,0.03343696,218.01,217.96,0.03060549]
[1738459887457,4.5883,217.98,217.96,0.03060549]
[1738459890464,4.5884,217.97,217.96,0.03060549]
[1738459892961,12.47024826,217.98,217.85,14.00444826]
[1738459893166,4.5897,217.91,217.87,4.5903]
[1738459893663,12.47024826,217.98,217.87,4.5903]
[1738459893664,4.5895,217.93,217.87,4.5903]
[1738459893960,12.47024826,217.98,217.87,4.5903]
[1738459894161,0.03223183,217.92,217.88,0.0348201]
[1738459895066,4.5901,217.89,217.88,0.0348201]
[1738459896165,4.5901,217.89,217.76,12.47024826]
[1738459896166,12.47024826,217.89,217.76,12.47024826]
[1738459896468,12.47024826,217.86,217.74,1.4044]
[1738459896662,12.47024826,217.86,217.74,4.5931]
[1738459896870,12.47024826,217.86,217.73,12.47024826]
[1738459897163,2.922,217.88,217.81,4.5917]
[1738459897369,0.03073293,217.82,217.79,12.47024826]
[1738459897566,13.12686191,217.92,217.79,12.47024826]
[1738459897760,0.02918711,217.83,217.79,12.47024826]
[1738459897965,4.5901,217.89,217.82,4.5915]
[1738459898165,0.03515146,217.83,217.82,4.5915]
[1738459898462,13.12686191,217.92,217.79,17.09189882]
[1738459898669,0.03257882,217.85,217.79,17.09189882]
[1738459898866,0.03257882,217.85,217.79,12.49979882]
[1738459899069,4.62357882,217.85,217.79,12.49979882]
[1738459900466,0.03257882,217.85,217.79,12.49979882]
[1738459900672,0.03257882,217.85,217.82,12.47024826]
[1738459902268,0.03257882,217.85,217.83,4.5913]
[1738459903173,0.03257882,217.85,217.81,4.5916]
[1738459903564,0.03257882,217.85,217.8,4.3874]
[1738459905371,0.03257882,217.85,217.8,1.5374]
[1738459905874,4.5914,217.83,217.8,1.5374]
[1738459906073,0.03257882,217.85,217.8,1.5374]
[1738459906573,0.03257882,217.85,217.8,6.1293]
[1738459906774,63.41800991,218.12,217.83,12.47024826]
[1738459906973,1.438,218.09,217.96,12.47024826]
[1738459907273,2.9655,218.09,217.96,12.47024826]
[1738459907674,4.5868,218.05,217.95,4.5887]
[1738459907874,0.03057299,218.05,218.0,0.02939799]
[1738459908076,12.47024826,218.06,217.89,12.47024826]
[1738459908275,0.03132246,218.05,218.0,0.03379295]
[1738459908473,15.49024826,218.06,218.0,0.03379295]
[1738459908474,15.49024826,218.06,218.0,0.03096438]
[1738459908669,0.03396471,218.05,218.0,0.03096438]
[1738459909878,4.5876,218.01,218.0,0.03096438]
[1738459910872,12.47024826,218.03,217.86,12.47024826]
[1738459911077,1.4963,218.0,217.89,4.59]
[1738459911272,13.96654826,218.0,217.86,12.47024826]
[1738459911576,13.96654826,218.0,217.88,4.5903]
[1738459911977,0.03410674,217.96,217.92,0.03191948]
[1738459912172,4.5891,217.94,217.92,0.03191948]
[1738459913674,4.5906,217.87,217.81,4.5918]
[1738459913980,12.47024826,217.93,217.8,1.5374]
[1738459914380,12.47024826,217.93,217.8,14.00764826]
[1738459914776,12.47024826,217.93,217.84,0.0296401]
[1738459914981,0.02913963,217.89,217.85,4.5909]
[1738459915179,0.02913963,217.89,217.84,0.0296401]
[1738459916191,4.61933963,217.89,217.84,0.0296401]
[1738459916578,0.02913963,217.89,217.84,0.0296401]
[1738459917184,4.5904,217.88,217.84,0.0296401]
[1738459917882,0.02913963,217.89,217.85,4.5909]
[1738459918386,0.02913963,217.89,217.86,17.06094826]
[1738459918685,0.02913963,217.89,217.86,12.47024826]
[1738459919587,0.02913963,217.89,217.87,4.5905]
[1738459919979,0.02913963,217.89,217.88,4.5903]
[1738459920179,0.02913963,217.89,217.86,12.47024826]
[1738459921989,0.02913963,217.89,217.86,17.06074826]
[1738459922390,0.02913963,217.89,217.84,0.0296401]
[1738459924288,4.591,217.85,217.84,0.0296401]
[1738459925789,0.02913963,217.89,217.84,0.0296401]
[1738459926887,0.02913963,217.89,217.85,4.5909]
[1738459927090,0.02913963,217.89,217.86,12.47024826]
[1738459927488,0.02913963,217.89,217.88,4.5903]
[1738459928295,0.02913963,217.89,217.86,17.06084826]
[1738459930597,0.02913963,217.89,217.84,0.0296401]
[1738459930798,4.5904,217.88,217.84,0.0296401]
[1738459930998,0.02913963,217.89,217.84,0.0296401]
[1738459932197,4.591,217.85,217.84,0.0296401]
[1738459932398,1.4817,217.88,217.73,12.47024826]
[1738459932598,1.4817,217.88,217.76,12.47024826]
[1738459933701,0.03522684,217.84,217.8,0.03152242]
[1738459934190,4.5914,217.83,217.8,0.03152242]
[1738459935393,4.5918,217.81,217.8,0.03152242]
[1738459941004,1.4244,217.83,217.73,17.06374826]
[1738459941202,4.5924,217.79,217.73,17.06374826]
[1738459941599,1.4244,217.83,217.73,17.06374826]
[1738459941800,1.4244,217.83,217.73,4.5935]
[1738459941801,4.5925,217.78,217.73,4.5935]
[1738459942204,4.62765049,217.78,217.73,4.62582961]
[1738459945116,0.03515049,217.78,217.76,4.5928]
[1738459945811,0.03515049,217.78,217.73,12.50257787]
[1738459946111,0.03515049,217.78,217.75,4.593]
[1738459946508,0.03515049,217.78,217.77,4.5926]
[1738459947112,0.03515049,217.78,217.73,12.50257787]
[1738459947311,0.03515049,217.78,217.74,4.5933]
[1738459949309,0.03515049,217.78,217.73,12.50257787]
[1738459949511,4.62765049,217.78,217.73,17.09597787]
[1738459949712,4.62765049,217.78,217.73,12.50257787]
[1738459949909,0.03515049,217.78,217.75,4.5929]
[1738459951715,0.03515049,217.78,217.76,4.5928]
[1738459952017,0.03515049,217.78,217.73,12.50257787]
[1738459952316,0.03515049,217.78,217.76,12.47024826]
[1738459952817,0.03515049,217.78,217.77,4.5926]
[1738459953418,0.03515049,217.78,217.76,17.06304826]
[1738459954713,0.03515049,217.78,217.76,12.47024826]
[1738459955421,2.8835,217.88,217.77,4.5926]
[1738459955620,4.5908,217.86,217.8,12.47024826]
[1738459956319,4.5903,217.88,217.82,4.5914]
[1738459956614,0.0342956,217.87,217.83,0.03415809]
[1738459957118,4.6247956,217.87,217.83,0.03415809]
[1738459957315,0.0342956,217.87,217.83,0.03415809]
[1738459961723,4.6249956,217.87,217.83,0.03415809]
[1738459962517,0.0342956,217.87,217.83,0.03415809]
[1738459962921,0.0342956,217.87,217.85,4.5908]
[1738459963318,0.0342956,217.87,217.83,12.50440635]
[1738459963718,0.0342956,217.87,217.83,0.03415809]
[1738459964328,0.0342956,217.87,217.84,4.5911]
[1738459964529,0.0342956,217.87,217.83,0.03415809]
[1738459964925,0.65660125,217.94,217.83,119.50440635]
[1738459965129,19.10541062,218.0,217.93,12.47024826]
[1738459965423,6.3684702,218.0,217.93,12.47024826]
[1738459965628,6.3684702,218.0,217.96,12.47024826]
[1738459965831,6.3684702,218.0,217.94,1.5071]
[1738459966224,0.03487454,217.99,217.95,0.03261252]
[1738459968819,0.03487454,217.99,217.96,4.5885]
[1738459969025,0.03487454,217.99,217.95,0.03261252]
[1738459970724,0.03487454,217.99,217.97,4.5883]
[1738459971029,7.454e-05,217.99,217.98,12.47024826]
[1738459971233,12.47024826,218.18,218.04,4.5869]
[1738459971429,4.3341,218.17,218.04,12.47024826]
[1738459972328,0.03376623,218.13,218.08,0.03236547]
[1738459972833,0.03376623,218.13,218.09,4.5858]
[1738459974435,12.47024826,218.27,218.12,12.47024826]
[1738459974628,1.4595,218.25,218.12,12.47024826]
[1738459974828,1.4595,218.25,218.15,12.47024826]
[1738459975035,12.47024826,218.24,218.09,12.47024826]
[1738459975234,12.47024826,218.21,218.09,12.47024826]
[1738459975434,4.5841,218.18,218.09,12.47024826]
[1738459975736,12.47024826,218.21,218.05,2.9453]
[1738459975737,0.03387098,218.17,218.13,0.03276351]
[1738459976135,0.03387098,218.17,218.15,4.5846]
[1738459977039,0.03387098,218.17,218.15,17.05484826]
[1738459977938,4.5819,218.28,218.21,4.5833]
[1738459978836,4.5822,218.27,218.2,12.47024826]
[1738459979136,4.61674353,218.27,218.22,0.03077469]
[1738459982948,0.03454353,218.27,218.26,17.05254826]
[1738459983248,0.03454353,218.27,218.23,12.47024826]
[1738459983448,4.61664353,218.27,218.23,12.47024826]
[1738459983649,0.03454353,218.27,218.23,12.47024826]
[1738459985348,4.5824,218.26,218.22,0.03077469]
[1738459985546,0.03454353,218.27,218.22,0.03077469]
[1738459986251,4.61674353,218.27,218.22,0.03077469]
[1738459990855,4.583,218.23,218.22,0.03077469]
[1738459998262,4.5827,218.25,218.22,0.03077469]
[1738459998957,4.61684353,218.27,218.22,0.03077469]
[1738459999660,0.03454353,218.27,218.25,4.5825]
[1738459999859,0.03454353,218.27,218.23,12.47024826]
[1738460000054,0.03454353,218.27,218.26,12.47024826]
[1738460000453,0.03454353,218.27,218.26,17.05254826]
[1738460002053,4.4304,218.39,218.26,12.47024826]
[1738460002357,4.4304,218.39,218.3,12.47024826]
[1738460002752,9.0102,218.39,218.31,4.5812]
[1738460003151,0.03024329,218.37,218.33,0.03413065]
[1738460003559,0.03024329,218.37,218.33,12.50437891]
[1738460004758,0.03024329,218.37,218.36,12.47024826]
[1738460005656,0.03024329,218.37,218.35,4.5804]
[1738460005858,0.03024329,218.37,218.33,12.50437891]
[1738460008160,0.03024329,218.37,218.34,3.01195702]
[1738460008361,0.03024329,218.37,218.35,3.01151315]
[1738460008660,0.03024329,218.37,218.36,3.01151315]
[1738460009965,0.03024329,218.37,218.35,4.5804]
[1738460010158,0.03024329,218.37,218.36,3.01421469]
[1738460010358,0.03024329,218.37,218.35,4.5804]
[1738460010657,0.03024329,218.37,218.34,4.5806]
[1738460012263,0.03024329,218.37,218.33,12.50437891]
[1738460012462,0.03024329,218.37,218.33,0.03413065]
[1738460013560,4.5803,218.36,218.33,0.03413065]
[1738460013767,0.03024329,218.37,218.33,0.03413065]
[1738460014866,4.5805,218.35,218.33,0.03413065]
[1738460016964,4.5803,218.36,218.33,0.03413065]
[1738460017170,0.03024329,218.37,218.33,0.03413065]
[1738460017470,4.5806,218.35,218.33,0.03413065]
[1738460019671,4.5806,218.34,218.33,0.03413065]
[1738460021370,0.03024329,218.37,218.27,12.47024826]
[1738460021574,4.5811,218.32,218.28,2.97700983]
[1738460021762,4.5811,218.32,218.27,17.05234826]
[1738460021966,4.5811,218.32,218.28,2.97700183]
[1738460022265,4.5811,218.32,218.27,17.05234826]
[1738460022667,4.61015035,218.32,218.27,17.08551497]
[1738460024767,0.02905035,218.32,218.27,17.08551497]
[1738460024972,0.02905035,218.32,218.28,4.5819]
[1738460026777,4.61035035,218.32,218.27,12.50341497]
[1738460026978,0.02905035,218.32,218.27,12.50341497]
[1738460028377,4.61015035,218.32,218.27,17.08551497]
[1738460029782,4.61015035,218.32,218.29,7.97814465]
[1738460030174,0.02905035,218.32,218.29,7.97814465]
[1738460032382,4.61015035,218.32,218.29,7.97814465]
[1738460033282,4.5814,218.31,218.27,8.01131136]
[1738460034083,4.5815,218.3,218.27,8.01131136]
[1738460034585,0.02905035,218.32,218.27,8.01131136]
[1738460034786,4.5818,218.29,218.27,8.01131136]
[1738460036385,0.02905035,218.32,218.27,8.01131136]
[1738460036585,4.5815,218.3,218.27,8.01131136]
[1738460037483,4.5813,218.31,218.27,0.03316671]
[1738460037684,0.02905035,218.32,218.29,7.97814465]
[1738460037985,0.02905035,218.32,218.31,7.97814465]
[1738460040186,0.02905035,218.32,218.29,7.97814465]
[1738460042090,0.02905035,218.32,218.27,8.01131136]
[1738460042291,0.02905035,218.32,218.27,0.03316671]
[1738460044303,4.5819,218.28,218.27,0.03316671]
[1738460046196,4.5819,218.28,218.27,8.01131136]
[1738460047301,0.02905035,218.32,218.28,4.5817]
[1738460047501,0.02905035,218.32,218.31,7.97814465]
[1738460048000,0.02905035,218.32,218.31,15.54722945]
[1738460051096,0.02905035,218.32,218.31,15.5467506]
[1738460051501,0.02905035,218.32,218.31,10.9654506]
[1738460051803,0.02905035,218.32,218.27,8.01131136]
[1738460052002,0.02905035,218.32,218.28,2.98972821]
[1738460052203,4.5813,218.31,218.29,2.98972821]
[1738460052495,4.5813,218.31,218.27,8.01131136]
[1738460052700,4.5815,218.3,218.28,2.99056655]
[1738460052899,4.5815,218.3,218.27,8.01131136]
[1738460053293,4.5817,218.29,218.27,8.01131136]
[1738460053603,7.97814465,218.31,218.27,0.03316671]
[1738460054502,9.42354465,218.31,218.27,0.03316671]
[1738460055404,7.97814465,218.29,218.21,7.97814465]
[1738460055700,7.97814465,218.25,218.19,7.97814465]
[1738460055901,7.97814465,218.25,218.2,2.99571579]
[1738460056104,4.5833,218.22,218.19,7.97814465]
[1738460056304,4.5833,218.22,218.2,2.99494857]
[1738460056597,4.5833,218.22,218.19,8.01266428]
[1738460056801,4.5835,218.21,218.19,0.03451963]
[1738460057503,8.01078275,218.23,218.19,0.03451963]
[1738460057702,4.5832,218.22,218.19,0.03451963]
[1738460058105,0.0326381,218.23,218.19,0.03451963]
[1738460058506,0.0326381,218.23,218.2,2.99108073]
[1738460058707,0.0326381,218.23,218.21,2.99108073]
[1738460058902,0.0326381,218.23,218.22,2.99108073]
[1738460060108,0.0326381,218.23,218.22,15.47233906]
[1738460060605,0.0326381,218.23,218.22,20.05553906]
[1738460073321,0.0326381,218.23,218.22,2.99108073]
[1738460073517,0.0326381,218.23,218.19,0.03451963]
[1738460073918,0.0326381,218.23,218.2,2.98753838]
[1738460074222,0.0326381,218.23,218.19,0.03451963]
[1738460074423,0.0326381,218.23,218.2,2.98758857]
[1738460074623,0.0326381,218.23,218.21,2.98743807]
[1738460074822,0.0326381,218.23,218.19,4.61831963]
[1738460075122,0.0326381,218.23,218.2,2.9874383]
[1738460075313,0.0326381,218.23,218.21,2.9874383]
[1738460075514,0.0326381,218.23,218.19,4.61831963]
[1738460075713,0.0326381,218.23,218.2,2.98730553]
[1738460075913,0.0326381,218.23,218.21,2.98739315]
[1738460076121,0.0326381,218.23,218.22,2.98681127]
[1738460076916,0.0326381,218.23,218.19,4.61831963]
[1738460077121,0.0326381,218.23,218.2,2.9873012]
[1738460077321,0.0326381,218.23,218.21,2.9873012]
[1738460077521,0.0326381,218.23,218.19,4.61831963]
[1738460077722,0.0326381,218.23,218.21,7.98392682]
[1738460080923,0.0326381,218.23,218.19,8.01844645]
[1738460081119,7.98392682,218.22,218.19,0.03451963]
[1738460081724,4.5836,218.2,218.19,0.03451963]
[1738460083228,9.47122682,218.22,218.15,7.98392682]
[1738460083419,4.5842,218.17,218.13,7.98392682]
[1738460083823,7.98392682,218.2,218.13,7.98392682]
[1738460084121,4.5843,218.17,218.13,7.98392682]
[1738460084328,7.98392682,218.18,218.11,7.98392682]
[1738460084523,4.5849,218.14,218.13,0.03508089]
[1738460084826,7.98392682,218.16,218.09,7.98392682]
[1738460085621,4.5851,218.13,218.09,7.98392682]
[1738460085823,7.98392682,218.14,218.1,0.03036069]
[1738460086019,7.98392682,218.14,218.07,7.98392682]
[1738460086228,0.03501017,218.14,218.1,0.02889778]
[1738460086428,4.61991017,218.14,218.1,0.02889778]
[1738460086619,4.61734389,218.14,218.1,0.03156688]
[1738460087228,0.03244389,218.14,218.13,7.98392682]
[1738460088626,0.03244389,218.14,218.1,0.03156688]
[1738460089028,8.01637071,218.14,218.1,0.03156688]
[1738460089227,4.5855,218.11,218.1,0.03156688]
[1738460092334,1.5293,218.13,218.1,0.03156688]
[1738460092532,4.5853,218.12,218.1,0.03156688]
[1738460095135,4.5855,218.11,218.1,0.03156688]
[1738460096134,0.03244389,218.14,218.11,4.5855]
[1738460096935,0.03244389,218.14,218.1,0.03156688]
[1738460097637,4.5853,218.12,218.1,0.03156688]
[1738460097832,0.03244389,218.14,218.1,0.03156688]
[1738460098236,1.51884389,218.14,218.1,0.03156688]
[1738460099035,4.5851,218.13,218.1,0.03156688]
[1738460099336,1.51884389,218.14,218.1,0.03156688]
[1738460099733,6.10374389,218.14,218.1,0.03156688]
[1738460100535,0.03244389,218.14,218.1,0.03156688]
[1738460101326,0.03244389,218.14,218.1,4.61726688]
[1738460102739,0.03244389,218.14,218.1,0.03156688]
[1738460103734,0.03244389,218.14,218.1,12.52203528]
[1738460104839,0.03244389,218.14,218.13,4.5851]
[1738460105542,1.4069,218.26,218.18,4.5839]
[1738460105736,1.4069,218.26,218.16,12.4904684]
[1738460106034,1.4069,218.26,218.15,4.5846]
[1738460106233,1.4069,218.26,218.13,12.4904684]
[1738460106842,0.02931478,218.22,218.17,4.61302243]
[1738460107541,0.02931478,218.22,218.17,0.02892243]
[1738460107736,0.02931478,218.22,218.19,4.5837]
[1738460107937,0.02931478,218.22,218.17,0.02892243]
[1738460108138,0.02931478,218.22,218.21,4.5834]
[1738460108740,0.02931478,218.22,218.19,12.4904684]
[1738460108942,0.02931478,218.22,218.19,17.0740684]
[1738460110048,0.02931478,218.22,218.21,4.5834]
[1738460111246,0.02931478,218.22,218.19,12.4904684]
[1738460112748,0.02931478,218.22,218.19,17.0742684]
[1738460113249,0.02931478,218.22,218.19,12.4904684]
[1738460113447,0.02931478,218.22,218.2,4.5836]
[1738460113649,0.02931478,218.22,218.19,12.4904684]
[1738460114748,0.02931478,218.22,218.21,4.5834]
[1738460115548,0.02931478,218.22,218.19,12.4904684]
[1738460116549,12.4904684,218.33,218.19,12.4904684]
[1738460116750,4.5815,218.3,218.23,4.5829]
[1738460117147,4.5818,218.29,218.23,4.5829]
[1738460117753,0.03026606,218.28,218.24,0.03015805]
[1738460121452,4.5823,218.26,218.24,0.03015805]
[1738460121652,7.98548521,218.26,218.24,0.03015805]
[1738460122054,4.5831,218.23,218.18,7.98548521]
[1738460122257,7.98548521,218.24,218.16,7.98548521]
[1738460122455,7.98548521,218.22,218.14,7.98548521]
[1738460123158,0.0289024,218.2,218.16,0.03099002]
[1738460124451,0.0289024,218.2,218.08,12.48224243]
[1738460125051,4.5849,218.14,218.06,4.5864]
[1738460125648,0.02995469,218.12,218.08,0.03086486]
[1738460130457,0.02995469,218.12,217.99,17.07014243]
[1738460130657,12.48224243,218.13,217.99,17.07014243]
[1738460131462,4.5865,218.06,217.99,17.07014243]
[1738460131664,0.03332827,218.08,218.04,0.03436058]
[1738460132763,4.5867,218.06,218.04,0.03436058]
[1738460133859,0.03332827,218.08,218.04,0.03436058]
[1738460135059,0.03332827,218.08,218.06,4.5864]
[1738460135256,0.03332827,218.08,218.05,12.48224243]
[1738460135456,0.03332827,218.08,218.07,4.5863]
[1738460136062,8.21661735,218.18,218.05,12.48224243]
[1738460136263,3.63241735,218.18,218.11,12.48224243]
[1738460136965,8.21641735,218.18,218.11,17.06774243]
[1738460137366,0.03522008,218.17,218.12,0.03341463]
[1738460138071,0.03522008,218.17,218.15,4.5846]
[1738460138268,16.98694243,218.34,218.14,12.48224243]
[1738460138568,4.5047,218.34,218.21,12.48224243]
[1738460138771,4.5814,218.31,218.22,4.583]
[1738460139365,0.0307707,218.29,218.24,0.03313507]
[1738460143275,0.0307707,218.29,218.24,17.0980775]
[1738460144568,0.0307707,218.29,218.26,4.5823]
[1738460146575,0.0307707,218.29,218.27,4.5821]
[1738460148482,0.0307707,218.29,218.24,12.5153775]
[1738460148784,0.0307707,218.29,218.26,4.5823]
[1738460153478,0.0307707,218.29,218.24,12.5153775]
[1738460153680,0.0307707,218.29,218.27,12.48224243]
[1738460154278,0.0307707,218.29,218.28,4.5819]
[1738460161087,4.5792,218.42,218.35,4.5804]
[1738460161385,0.655158,218.43,218.34,12.48224243]
[1738460161684,0.655158,218.43,218.37,4.58]
[1738460162276,0.03015365,218.42,218.38,0.03180382]
[1738460163188,4.60915365,218.42,218.38,0.03180382]
[1738460163388,0.03015365,218.42,218.38,0.03180382]
[1738460163582,0.03015365,218.42,218.25,2.9623]
[1738460163783,4.5804,218.36,218.28,12.48224243]
[1738460163984,1.5219,218.42,218.28,12.48224243]
[1738460164786,0.02955811,218.37,218.33,0.03222781]
[1738460165087,4.5803,218.36,218.33,0.03222781]
[1738460165285,0.02955811,218.37,218.33,0.03222781]
[1738460165888,4.5806,218.34,218.33,0.03222781]
[1738460168090,0.02955811,218.37,218.33,0.03222781]
[1738460169792,4.5805,218.35,218.33,0.03222781]
[1738460170294,0.02955811,218.37,218.33,0.03222781]
[1738460170493,12.51180054,218.37,218.25,12.48224243]
[1738460170696,1.5326,218.36,218.25,12.48224243]
[1738460171196,1.5326,218.36,218.25,17.06464243]
[1738460171593,1.5326,218.36,218.22,12.48224243]
[1738460171788,12.48224243,218.34,218.19,12.48224243]
[1738460171994,0.02953297,218.31,218.27,0.03312952]
[1738460172195,4.5827,218.25,218.2,4.5836]
[1738460172394,12.48224243,218.31,218.16,12.48224243]
[1738460173196,15.48224243,218.31,218.16,12.48224243]
[1738460173493,0.03407729,218.26,218.21,0.02892348]
[1738460175490,0.03407729,218.26,218.13,12.48224243]
[1738460175690,1.4405,218.27,218.13,12.48224243]
[1738460176390,12.48224243,218.22,218.07,12.48224243]
[1738460176690,4.5843,218.17,218.08,4.5859]
[1738460176888,4.4577,218.21,218.1,12.48224243]
[1738460177290,4.5842,218.17,218.12,4.5852]
[1738460177490,4.4577,218.21,218.12,4.5852]
[1738460177692,4.4577,218.21,218.1,12.48224243]